[Event "Early-Titled-Tuesday-Blitz-January-23-2024"]
[Site "Chess.com"]
[Date "2024.01.23"]
[Round "4"]
[White "BashirliSaadat"]
[Black "arenal72"]
[Result "1-0"]
[WhiteElo "2429"]
[BlackElo "2576"]
[TimeControl "180+1"]
[EndTime "8:39:28 PST"]
[Termination "BashirliSaadat won on time"]

1. e4 {[%clk 0:03:00.9]} 1... Nc6 {[%clk 0:02:59.1]} 2. d4 {[%clk 0:02:59.8]}
2... d5 {[%clk 0:02:58]} 3. exd5 {[%clk 0:02:57.4]} 3... Qxd5 {[%clk 0:02:57.3]}
4. Nf3 {[%clk 0:02:56.7]} 4... Bg4 {[%clk 0:02:56.7]} 5. Be3 {[%clk 0:02:54.9]}
5... Bxf3 {[%clk 0:02:45.4]} 6. Qxf3 {[%clk 0:02:53.1]} 6... Qxf3 {[%clk
0:02:45.2]} 7. gxf3 {[%clk 0:02:53.1]} 7... O-O-O {[%clk 0:02:45.8]} 8. c3
{[%clk 0:02:52.6]} 8... e5 {[%clk 0:02:43.3]} 9. dxe5 {[%clk 0:02:52]} 9... Nxe5
{[%clk 0:02:41.7]} 10. Nd2 {[%clk 0:02:52.3]} 10... f5 {[%clk 0:02:31.2]} 11.
Be2 {[%clk 0:02:45.5]} 11... Nf6 {[%clk 0:02:22]} 12. O-O-O {[%clk 0:02:42.2]}
12... a6 {[%clk 0:02:07.2]} 13. Nb3 {[%clk 0:02:27.8]} 13... Be7 {[%clk
0:01:57.8]} 14. Bd4 {[%clk 0:02:22.4]} 14... Ng6 {[%clk 0:01:45.6]} 15. Bd3
{[%clk 0:02:20.8]} 15... Nh4 {[%clk 0:01:45.5]} 16. Rhe1 {[%clk 0:02:12.2]}
16... Rhe8 {[%clk 0:01:43.1]} 17. Bc4 {[%clk 0:01:48.2]} 17... Bd6 {[%clk
0:01:31.4]} 18. Bxf6 {[%clk 0:01:31.5]} 18... gxf6 {[%clk 0:01:32.3]} 19. Nd4
{[%clk 0:01:27.6]} 19... c5 {[%clk 0:01:23.7]} 20. Be6+ {[%clk 0:01:08.7]} 20...
Kc7 {[%clk 0:01:20.3]} 21. Nxf5 {[%clk 0:01:05.7]} 21... Bf4+ {[%clk 0:01:18]}
22. Kc2 {[%clk 0:00:57.6]} 22... Rxd1 {[%clk 0:01:17.3]} 23. Kxd1 {[%clk
0:00:54.3]} 23... Nxf3 {[%clk 0:01:12.3]} 24. Re4 {[%clk 0:00:35.9]} 24... Be5
{[%clk 0:01:02.1]} 25. Bd5 {[%clk 0:00:29.6]} 25... Rd8 {[%clk 0:00:50.4]} 26.
c4 {[%clk 0:00:28.2]} 26... Rd7 {[%clk 0:00:25.9]} 27. Kc2 {[%clk 0:00:22.8]}
27... h5 {[%clk 0:00:23.1]} 28. Re3 {[%clk 0:00:18.5]} 28... Ng5 {[%clk
0:00:18.5]} 29. h4 {[%clk 0:00:17.6]} 29... Nh7 {[%clk 0:00:16.2]} 30. Rb3
{[%clk 0:00:16.2]} 30... b6 {[%clk 0:00:15.7]} 31. a4 {[%clk 0:00:15.6]} 31...
a5 {[%clk 0:00:14.9]} 32. Re3 {[%clk 0:00:13.9]} 32... Nf8 {[%clk 0:00:14.1]}
33. Re1 {[%clk 0:00:12.4]} 33... Ng6 {[%clk 0:00:12.3]} 34. Rg1 {[%clk
0:00:11.8]} 34... Nf4 {[%clk 0:00:12.4]} 35. Ne3 {[%clk 0:00:10.1]} 35... Bd4
{[%clk 0:00:10.1]} 36. Be4 {[%clk 0:00:06.4]} 36... Nh3 {[%clk 0:00:06.8]} 37.
Rg3 {[%clk 0:00:05.8]} 37... Nxf2 {[%clk 0:00:06.5]} 38. Bf5 {[%clk 0:00:04.6]}
38... Bxe3 {[%clk 0:00:05.7]} 39. Bxd7 {[%clk 0:00:03.9]} 39... Bd4 {[%clk
0:00:03]} 40. Be6 {[%clk 0:00:02.9]} 40... Ne4 {[%clk 0:00:02]} 41. Rg7+ {[%clk
0:00:03.2]} 41... Kd6 {[%clk 0:00:01.8]} 42. Bf5 {[%clk 0:00:03]} 42... Ke5
{[%clk 0:00:01.8]} 43. Bxe4 {[%clk 0:00:02.6]} 43... Kxe4 {[%clk 0:00:02.7]} 44.
Rh7 {[%clk 0:00:02.2]} 44... f5 {[%clk 0:00:03.4]} 45. Rxh5 {[%clk 0:00:02.7]}
45... f4 {[%clk 0:00:04.3]} 46. Rh7 {[%clk 0:00:02.7]} 46... f3 {[%clk
0:00:04.3]} 47. Rf7 {[%clk 0:00:03.2]} 47... Be3 {[%clk 0:00:03.8]} 48. h5
{[%clk 0:00:03.3]} 48... f2 {[%clk 0:00:03.7]} 49. Kd1 {[%clk 0:00:03.5]} 49...
Kd3 {[%clk 0:00:03.5]} 50. Rf6 {[%clk 0:00:02.2]} 50... Kxc4 {[%clk 0:00:03.3]}
51. h6 {[%clk 0:00:02.1]} 51... Kd3 {[%clk 0:00:02.7]} 52. h7 {[%clk 0:00:02.1]}
52... Bd4 {[%clk 0:00:03]} 53. Rf7 {[%clk 0:00:02.1]} 53... c4 {[%clk
0:00:02.6]} 54. Rf3+ {[%clk 0:00:02.6]} 54... Ke4 {[%clk 0:00:02.5]} 55. Rxf2
{[%clk 0:00:03]} 1-0

[Event "Early-Titled-Tuesday-Blitz-January-23-2024"]
[Site "Chess.com"]
[Date "2024.01.23"]
[Round "4"]
[White "karenzc"]
[Black "rynos0411"]
[Result "0-1"]
[WhiteElo "2196"]
[BlackElo "2501"]
[TimeControl "180+1"]
[EndTime "8:39:28 PST"]
[Termination "rynos0411 won by checkmate"]

1. e4 {[%clk 0:03:00.9]} 1... c5 {[%clk 0:02:59.9]} 2. Nc3 {[%clk 0:03:00.4]}
2... d6 {[%clk 0:02:54.5]} 3. f4 {[%clk 0:03:00.1]} 3... Nc6 {[%clk 0:02:51.7]}
4. Nf3 {[%clk 0:02:59.1]} 4... g6 {[%clk 0:02:51.6]} 5. d3 {[%clk 0:02:58.6]}
5... Bg7 {[%clk 0:02:51.7]} 6. Be3 {[%clk 0:02:57]} 6... e6 {[%clk 0:02:48.4]}
7. d4 {[%clk 0:02:56.8]} 7... cxd4 {[%clk 0:02:38.4]} 8. Nxd4 {[%clk 0:02:55.1]}
8... a6 {[%clk 0:02:38.2]} 9. Qd2 {[%clk 0:02:40.7]} 9... Nf6 {[%clk 0:02:36.9]}
10. Rd1 {[%clk 0:02:40.4]} 10... d5 {[%clk 0:02:25.5]} 11. e5 {[%clk 0:02:34]}
11... Ng4 {[%clk 0:02:20.2]} 12. Nxc6 {[%clk 0:02:33.6]} 12... bxc6 {[%clk
0:02:19.3]} 13. Bc5 {[%clk 0:02:33.9]} 13... Bf8 {[%clk 0:02:15.8]} 14. Bxf8
{[%clk 0:02:30.2]} 14... Kxf8 {[%clk 0:02:15.7]} 15. Be2 {[%clk 0:02:27.4]}
15... h5 {[%clk 0:01:38.2]} 16. Ne4 {[%clk 0:02:17]} 16... Qh4+ {[%clk
0:01:36.2]} 17. g3 {[%clk 0:02:16.6]} 17... Qe7 {[%clk 0:01:24.3]} 18. Bxg4
{[%clk 0:02:13.2]} 18... hxg4 {[%clk 0:01:24.3]} 19. Nf6 {[%clk 0:02:13.1]}
19... Rb8 {[%clk 0:01:22]} 20. Qc3 {[%clk 0:01:48.6]} 20... c5 {[%clk
0:01:20.1]} 21. Nxg4 {[%clk 0:01:46.6]} 21... d4 {[%clk 0:01:20.3]} 22. Qa3
{[%clk 0:01:46.5]} 22... Bb7 {[%clk 0:01:20.2]} 23. Kf2 {[%clk 0:01:31.9]} 23...
Bxh1 {[%clk 0:01:14.7]} 24. Rxh1 {[%clk 0:01:32.1]} 24... Kg7 {[%clk 0:01:15.3]}
25. h4 {[%clk 0:01:27.5]} 25... Qb7 {[%clk 0:01:11.5]} 26. Rb1 {[%clk
0:01:25.8]} 26... Qe4 {[%clk 0:01:07.1]} 27. Qd3 {[%clk 0:01:09.4]} 27... Qd5
{[%clk 0:01:01]} 28. b3 {[%clk 0:01:07.3]} 28... a5 {[%clk 0:00:45.7]} 29. Nf6
{[%clk 0:01:07.1]} 29... Qc6 {[%clk 0:00:44.8]} 30. Rg1 {[%clk 0:00:38.6]} 30...
a4 {[%clk 0:00:42.6]} 31. h5 {[%clk 0:00:19.8]} 31... gxh5 {[%clk 0:00:41.9]}
32. g4 {[%clk 0:00:20.2]} 32... h4 {[%clk 0:00:41.9]} 33. g5 {[%clk 0:00:18.5]}
33... axb3 {[%clk 0:00:28.2]} 34. g6 {[%clk 0:00:15.6]} 34... Rh6 {[%clk
0:00:19.1]} 35. gxf7+ {[%clk 0:00:15.5]} 35... Kxf7 {[%clk 0:00:19.7]} 36. axb3
{[%clk 0:00:12.1]} 36... h3 {[%clk 0:00:18]} 37. Qd1 {[%clk 0:00:07.7]} 37... h2
{[%clk 0:00:15.4]} 38. Rh1 {[%clk 0:00:07.9]} 38... Rbh8 {[%clk 0:00:13]} 39.
Qf3 {[%clk 0:00:07.9]} 39... Qxf3+ {[%clk 0:00:12.1]} 40. Kxf3 {[%clk
0:00:07.9]} 40... Rh3+ {[%clk 0:00:13]} 41. Kg2 {[%clk 0:00:08.3]} 41... Rc3
{[%clk 0:00:13.9]} 42. Ne4 {[%clk 0:00:05.5]} 42... Rxc2+ {[%clk 0:00:14.1]} 43.
Kg3 {[%clk 0:00:06.1]} 43... d3 {[%clk 0:00:14.4]} 44. Nd6+ {[%clk 0:00:05.7]}
44... Ke7 {[%clk 0:00:14.5]} 45. f5 {[%clk 0:00:05.4]} 45... exf5 {[%clk
0:00:14.6]} 46. Nxf5+ {[%clk 0:00:05.8]} 46... Ke6 {[%clk 0:00:15.2]} 47. Ne3
{[%clk 0:00:05.1]} 47... Re2 {[%clk 0:00:14.2]} 48. Nc4 {[%clk 0:00:04.8]} 48...
d2 {[%clk 0:00:14]} 49. Kf3 {[%clk 0:00:05]} 49... Re1 {[%clk 0:00:14.4]} 50.
Nxd2 {[%clk 0:00:04]} 50... Rxh1 {[%clk 0:00:14.4]} 51. Ne4 {[%clk 0:00:03.7]}
51... Rf1+ {[%clk 0:00:14.6]} 52. Ke3 {[%clk 0:00:03.8]} 52... h1=Q {[%clk
0:00:15.5]} 53. Ng5+ {[%clk 0:00:04.4]} 53... Kxe5 {[%clk 0:00:15.7]} 54. Nf7+
{[%clk 0:00:04.7]} 54... Rxf7 {[%clk 0:00:15.4]} 55. Kd3 {[%clk 0:00:01.4]}
55... Qf3+ {[%clk 0:00:15.4]} 56. Kc4 {[%clk 0:00:01.6]} 56... Qd5+ {[%clk
0:00:15.4]} 57. Kb5 {[%clk 0:00:01.3]} 57... Rb7+ {[%clk 0:00:15.3]} 58. Ka5
{[%clk 0:00:01.4]} 58... Ra8# {[%clk 0:00:15.5]} 0-1

[Event "Early-Titled-Tuesday-Blitz-January-23-2024"]
[Site "Chess.com"]
[Date "2024.01.23"]
[Round "4"]
[White "Fandorine"]
[Black "Alex_Sahakyan2006"]
[Result "1-0"]
[WhiteElo "2980"]
[BlackElo "2717"]
[TimeControl "180+1"]
[EndTime "8:39:33 PST"]
[Termination "Fandorine won by resignation"]

1. d4 {[%clk 0:02:59.3]} 1... Nf6 {[%clk 0:02:59.6]} 2. c4 {[%clk 0:02:59.8]}
2... c5 {[%clk 0:02:58.9]} 3. d5 {[%clk 0:02:59.5]} 3... b5 {[%clk 0:02:59.4]}
4. cxb5 {[%clk 0:02:56.2]} 4... a6 {[%clk 0:02:59.7]} 5. e3 {[%clk 0:02:54.2]}
5... g6 {[%clk 0:02:59]} 6. Nc3 {[%clk 0:02:51.3]} 6... Bg7 {[%clk 0:02:55.9]}
7. a4 {[%clk 0:02:42.9]} 7... O-O {[%clk 0:02:54.2]} 8. Nf3 {[%clk 0:02:43.6]}
8... d6 {[%clk 0:02:48.8]} 9. Be2 {[%clk 0:02:35.3]} 9... axb5 {[%clk
0:02:48.6]} 10. Bxb5 {[%clk 0:02:34.6]} 10... Ba6 {[%clk 0:02:48.8]} 11. Bd2
{[%clk 0:02:30.2]} 11... Nbd7 {[%clk 0:02:32.8]} 12. O-O {[%clk 0:02:28.6]}
12... Bxb5 {[%clk 0:02:27]} 13. axb5 {[%clk 0:02:28.9]} 13... Qb6 {[%clk
0:02:23.3]} 14. Qe2 {[%clk 0:02:18.6]} 14... Rfb8 {[%clk 0:02:15.4]} 15. e4
{[%clk 0:02:10.5]} 15... Ne8 {[%clk 0:02:15.5]} 16. h4 {[%clk 0:02:07.5]} 16...
Nc7 {[%clk 0:02:11.7]} 17. h5 {[%clk 0:02:03.8]} 17... gxh5 {[%clk 0:01:36.7]}
18. Nh4 {[%clk 0:01:51.2]} 18... Rxa1 {[%clk 0:01:36.5]} 19. Rxa1 {[%clk
0:01:49.7]} 19... Nxb5 {[%clk 0:01:36.5]} 20. Qxb5 {[%clk 0:00:55.9]} 20... Qxb5
{[%clk 0:01:35.1]} 21. Nxb5 {[%clk 0:00:56.8]} 21... Rxb5 {[%clk 0:01:34.6]} 22.
Ra7 {[%clk 0:00:57.3]} 22... Rxb2 {[%clk 0:01:18.2]} 23. Be3 {[%clk 0:00:30.1]}
23... Ne5 {[%clk 0:01:04.8]} 24. f3 {[%clk 0:00:27.9]} 24... Ng6 {[%clk
0:00:54]} 25. Ra8+ {[%clk 0:00:24.8]} 25... Nf8 {[%clk 0:00:31.9]} 26. Nf5
{[%clk 0:00:24.8]} 26... Rb7 {[%clk 0:00:24]} 27. Nh6+ {[%clk 0:00:22.7]} 27...
Kh8 {[%clk 0:00:24.5]} 28. Nxf7+ {[%clk 0:00:23.1]} 28... Kg8 {[%clk 0:00:25.1]}
29. Nh6+ {[%clk 0:00:23.3]} 29... Kh8 {[%clk 0:00:25.8]} 30. Nf5 {[%clk
0:00:18.6]} 30... Kg8 {[%clk 0:00:14.8]} 31. Nh6+ {[%clk 0:00:14.6]} 31... Kh8
{[%clk 0:00:15.1]} 32. Bg5 {[%clk 0:00:15.4]} 32... Rb1+ {[%clk 0:00:07.7]} 33.
Kh2 {[%clk 0:00:14.4]} 33... Ra1 {[%clk 0:00:06.9]} 34. Rc8 {[%clk 0:00:12.8]}
34... Ra7 {[%clk 0:00:02.4]} 35. Nf5 {[%clk 0:00:10.7]} 35... Kg8 {[%clk
0:00:03]} 36. Bxe7 {[%clk 0:00:09.1]} 36... Rxe7 {[%clk 0:00:01.6]} 37. Nxe7+
{[%clk 0:00:08.8]} 37... Kf7 {[%clk 0:00:02.5]} 38. Nf5 {[%clk 0:00:09.3]} 38...
Be5+ {[%clk 0:00:03.4]} 39. g3 {[%clk 0:00:09.5]} 39... Ng6 {[%clk 0:00:02.3]}
40. f4 {[%clk 0:00:09.4]} 40... Nxf4 {[%clk 0:00:02.7]} 41. gxf4 {[%clk
0:00:09.7]} 41... Bxf4+ {[%clk 0:00:03.6]} 42. Kg2 {[%clk 0:00:10.4]} 42... Kf6
{[%clk 0:00:04.5]} 43. Kf3 {[%clk 0:00:10.3]} 43... Be5 {[%clk 0:00:05]} 44. Rd8
{[%clk 0:00:05.1]} 44... c4 {[%clk 0:00:04.7]} 45. Nxd6 {[%clk 0:00:04.2]} 45...
Ke7 {[%clk 0:00:05.2]} 46. Rc8 {[%clk 0:00:03.2]} 46... Bxd6 {[%clk 0:00:02.4]}
47. Rxc4 {[%clk 0:00:03.8]} 47... Kf6 {[%clk 0:00:03.3]} 48. Rc8 {[%clk
0:00:03.6]} 48... h4 {[%clk 0:00:03.1]} 49. Re8 {[%clk 0:00:04.1]} 49... Bg3
{[%clk 0:00:03]} 50. Re6+ {[%clk 0:00:04]} 50... Kf7 {[%clk 0:00:03.6]} 51. Rh6
{[%clk 0:00:03.6]} 51... Kg7 {[%clk 0:00:03.5]} 52. Rh5 {[%clk 0:00:04.3]} 52...
Kg6 {[%clk 0:00:04]} 53. Rf5 {[%clk 0:00:04.7]} 53... h6 {[%clk 0:00:02.2]} 54.
Kg2 {[%clk 0:00:05.1]} 54... Kg7 {[%clk 0:00:01.9]} 55. Kh3 {[%clk 0:00:05.4]}
55... Kg6 {[%clk 0:00:02.4]} 56. Rf3 {[%clk 0:00:05.5]} 56... Kg5 {[%clk
0:00:01.1]} 57. Rxg3+ {[%clk 0:00:05]} 57... hxg3 {[%clk 0:00:02]} 58. Kxg3
{[%clk 0:00:05.5]} 58... h5 {[%clk 0:00:02.7]} 59. Kh3 {[%clk 0:00:05.9]} 59...
Kf4 {[%clk 0:00:02.7]} 60. d6 {[%clk 0:00:06]} 1-0

[Event "Early-Titled-Tuesday-Blitz-January-23-2024"]
[Site "Chess.com"]
[Date "2024.01.23"]
[Round "4"]
[White "Kotlyar_K"]
[Black "Ezov"]
[Result "1-0"]
[WhiteElo "2505"]
[BlackElo "2224"]
[TimeControl "180+1"]
[EndTime "8:39:40 PST"]
[Termination "Kotlyar_K won by resignation"]

1. e4 {[%clk 0:03:00.9]} 1... e6 {[%clk 0:02:58.8]} 2. Nf3 {[%clk 0:03:00.3]}
2... d5 {[%clk 0:02:59.7]} 3. Nc3 {[%clk 0:03:00.3]} 3... Nf6 {[%clk 0:02:58.5]}
4. e5 {[%clk 0:03:00.1]} 4... Nfd7 {[%clk 0:02:57.6]} 5. d4 {[%clk 0:03:00.5]}
5... b6 {[%clk 0:02:54.5]} 6. Ng5 {[%clk 0:02:53.3]} 6... Be7 {[%clk 0:02:30.8]}
7. Qh5 {[%clk 0:02:19.7]} 7... g6 {[%clk 0:02:22.9]} 8. Qg4 {[%clk 0:02:20.1]}
8... h5 {[%clk 0:02:20.3]} 9. Qg3 {[%clk 0:02:20.2]} 9... h4 {[%clk 0:02:13.2]}
10. Qg4 {[%clk 0:02:19.7]} 10... Rh5 {[%clk 0:02:09.2]} 11. Nxe6 {[%clk
0:02:14.5]} 11... Nxe5 {[%clk 0:01:56.6]} 12. Qe2 {[%clk 0:01:35.3]} 12... Bxe6
{[%clk 0:01:52.7]} 13. dxe5 {[%clk 0:01:34.3]} 13... Nd7 {[%clk 0:01:41.7]} 14.
Bf4 {[%clk 0:01:25.3]} 14... Bg5 {[%clk 0:01:15.3]} 15. Bxg5 {[%clk 0:00:36]}
15... Qxg5 {[%clk 0:01:16.2]} 16. Nb5 {[%clk 0:00:28.9]} 16... Qxe5 {[%clk
0:01:10.5]} 17. O-O-O {[%clk 0:00:22.5]} 17... Qxe2 {[%clk 0:01:09]} 18. Bxe2
{[%clk 0:00:22.2]} 18... O-O-O {[%clk 0:00:52.4]} 19. Bxh5 {[%clk 0:00:21.3]}
19... gxh5 {[%clk 0:00:53.3]} 20. Nxa7+ {[%clk 0:00:20.8]} 20... Kb7 {[%clk
0:00:52.3]} 21. Nb5 {[%clk 0:00:21.7]} 21... Nc5 {[%clk 0:00:48.8]} 22. Nd4
{[%clk 0:00:22.1]} 22... Ne4 {[%clk 0:00:48.2]} 23. Nxe6 {[%clk 0:00:22.1]}
23... fxe6 {[%clk 0:00:48.9]} 24. Rhf1 {[%clk 0:00:22.3]} 24... Rg8 {[%clk
0:00:46.4]} 25. g3 {[%clk 0:00:22.7]} 25... hxg3 {[%clk 0:00:45]} 26. fxg3
{[%clk 0:00:23.6]} 26... Nc5 {[%clk 0:00:42.3]} 27. Rf6 {[%clk 0:00:23.1]} 27...
h4 {[%clk 0:00:40.1]} 28. Rf3 {[%clk 0:00:21.2]} 28... hxg3 {[%clk 0:00:39.3]}
29. hxg3 {[%clk 0:00:22.1]} 29... Ne4 {[%clk 0:00:38.7]} 30. Rg1 {[%clk
0:00:22.7]} 30... Kc6 {[%clk 0:00:36.2]} 31. g4 {[%clk 0:00:23.2]} 31... Kd6
{[%clk 0:00:36.5]} 32. c3 {[%clk 0:00:22.4]} 32... Ke5 {[%clk 0:00:37]} 33. Kc2
{[%clk 0:00:22.7]} 33... c5 {[%clk 0:00:36.4]} 34. b3 {[%clk 0:00:21.9]} 34...
Ng5 {[%clk 0:00:35.9]} 35. Rf2 {[%clk 0:00:17.4]} 35... Ne4 {[%clk 0:00:35.5]}
36. Rh2 {[%clk 0:00:16.9]} 36... Rg5 {[%clk 0:00:31]} 37. Rh5 {[%clk 0:00:16.5]}
37... Kf4 {[%clk 0:00:30.9]} 38. Rh6 {[%clk 0:00:15.9]} 38... Rxg4 {[%clk
0:00:26.4]} 39. Rxg4+ {[%clk 0:00:14.4]} 39... Kxg4 {[%clk 0:00:27.3]} 40. Rxe6
{[%clk 0:00:15.3]} 40... b5 {[%clk 0:00:26.9]} 41. Rb6 {[%clk 0:00:14.5]} 41...
b4 {[%clk 0:00:24.5]} 42. cxb4 {[%clk 0:00:15.4]} 42... cxb4 {[%clk 0:00:25.4]}
43. Rxb4 {[%clk 0:00:15.7]} 43... Kf5 {[%clk 0:00:22.8]} 44. Kd3 {[%clk
0:00:15.2]} 44... Nc5+ {[%clk 0:00:22.2]} 45. Kd4 {[%clk 0:00:14.5]} 45... Ne6+
{[%clk 0:00:21]} 46. Kxd5 {[%clk 0:00:14.3]} 46... Nc7+ {[%clk 0:00:21]} 47. Kc6
{[%clk 0:00:14.2]} 47... Ne6 {[%clk 0:00:17.3]} 48. Rc4 {[%clk 0:00:14.3]} 48...
Ke5 {[%clk 0:00:14.6]} 49. a4 {[%clk 0:00:14]} 49... Nd8+ {[%clk 0:00:14.1]} 50.
Kd7 {[%clk 0:00:14.2]} 50... Nf7 {[%clk 0:00:13.6]} 51. a5 {[%clk 0:00:12]}
51... Nd6 {[%clk 0:00:12.5]} 52. Rb4 {[%clk 0:00:12.7]} 52... Nf5 {[%clk
0:00:10.7]} 53. a6 {[%clk 0:00:12.7]} 53... Ne3 {[%clk 0:00:10.8]} 54. a7 {[%clk
0:00:12.5]} 54... Nd5 {[%clk 0:00:11.7]} 55. Rb5 {[%clk 0:00:12.6]} 55... Kd4
{[%clk 0:00:09.8]} 56. Rxd5+ {[%clk 0:00:13.2]} 56... Kxd5 {[%clk 0:00:10.7]}
57. a8=Q+ {[%clk 0:00:14.1]} 57... Kd4 {[%clk 0:00:10.7]} 58. Qa4+ {[%clk
0:00:14.1]} 1-0

[Event "Early-Titled-Tuesday-Blitz-January-23-2024"]
[Site "Chess.com"]
[Date "2024.01.23"]
[Round "4"]
[White "Rud_Makarian"]
[Black "vladislavkovalev"]
[Result "1/2-1/2"]
[WhiteElo "3012"]
[BlackElo "2851"]
[TimeControl "180+1"]
[EndTime "8:39:42 PST"]
[Termination "Game drawn - insufficient material"]

1. c4 {[%clk 0:03:00.9]} 1... g6 {[%clk 0:02:59.5]} 2. Nc3 {[%clk 0:03:01]} 2...
Bg7 {[%clk 0:03:00.3]} 3. d4 {[%clk 0:03:01.5]} 3... d6 {[%clk 0:03:00.9]} 4.
Nf3 {[%clk 0:03:01.6]} 4... Nd7 {[%clk 0:02:58.1]} 5. e4 {[%clk 0:03:01.7]} 5...
e5 {[%clk 0:02:58.8]} 6. Be2 {[%clk 0:02:52.8]} 6... Ne7 {[%clk 0:02:53]} 7. O-O
{[%clk 0:02:47.7]} 7... O-O {[%clk 0:02:52.9]} 8. dxe5 {[%clk 0:02:23.3]} 8...
Nxe5 {[%clk 0:02:48.2]} 9. Nxe5 {[%clk 0:02:20.4]} 9... dxe5 {[%clk 0:02:05.7]}
10. Qxd8 {[%clk 0:02:20.4]} 10... Rxd8 {[%clk 0:02:06.6]} 11. Nd5 {[%clk
0:02:21]} 11... Rd7 {[%clk 0:01:54.2]} 12. Bg5 {[%clk 0:02:10.9]} 12... Nc6
{[%clk 0:01:53.8]} 13. Bg4 {[%clk 0:01:51.9]} 13... Rd6 {[%clk 0:01:08]} 14. c5
{[%clk 0:01:51.9]} 14... Bxg4 {[%clk 0:00:58.7]} 15. cxd6 {[%clk 0:01:51.2]}
15... cxd6 {[%clk 0:00:59.6]} 16. f3 {[%clk 0:01:51.1]} 16... Be6 {[%clk
0:00:59.4]} 17. Nc7 {[%clk 0:01:51.3]} 17... Rc8 {[%clk 0:00:58.6]} 18. Nxe6
{[%clk 0:01:51.8]} 18... fxe6 {[%clk 0:00:59.5]} 19. Rac1 {[%clk 0:01:50.4]}
19... a6 {[%clk 0:00:51.4]} 20. Rfd1 {[%clk 0:01:50.4]} 20... Bf8 {[%clk
0:00:51.8]} 21. Be3 {[%clk 0:01:46.6]} 21... Kf7 {[%clk 0:00:51.2]} 22. Kf2
{[%clk 0:01:46.8]} 22... Be7 {[%clk 0:00:46.9]} 23. Rc3 {[%clk 0:01:47]} 23...
Rd8 {[%clk 0:00:44]} 24. Rcd3 {[%clk 0:01:40.7]} 24... Rc8 {[%clk 0:00:36.4]}
25. a3 {[%clk 0:01:38.9]} 25... Na5 {[%clk 0:00:30.2]} 26. Rc1 {[%clk
0:01:35.4]} 26... Nc6 {[%clk 0:00:28]} 27. b4 {[%clk 0:01:21.9]} 27... Rd8
{[%clk 0:00:25.7]} 28. Rcd1 {[%clk 0:01:21]} 28... Ra8 {[%clk 0:00:18.9]} 29. g3
{[%clk 0:01:18.1]} 29... Ke8 {[%clk 0:00:15.9]} 30. h4 {[%clk 0:01:13]} 30... h5
{[%clk 0:00:11.6]} 31. Bg5 {[%clk 0:01:01.5]} 31... Bf8 {[%clk 0:00:10.9]} 32.
f4 {[%clk 0:00:56.8]} 32... Rc8 {[%clk 0:00:04.4]} 33. Rc1 {[%clk 0:00:30.2]}
33... Kd7 {[%clk 0:00:04.7]} 34. Rdd1 {[%clk 0:00:13.8]} 34... Ra8 {[%clk
0:00:05]} 35. Bf6 {[%clk 0:00:11.6]} 35... Ke8 {[%clk 0:00:02.2]} 36. fxe5
{[%clk 0:00:11.4]} 36... dxe5 {[%clk 0:00:03.1]} 37. Bg5 {[%clk 0:00:10.9]}
37... Be7 {[%clk 0:00:02.8]} 38. Bxe7 {[%clk 0:00:10.2]} 38... Kxe7 {[%clk
0:00:03.7]} 39. Ke3 {[%clk 0:00:10.6]} 39... a5 {[%clk 0:00:04.2]} 40. b5 {[%clk
0:00:10.9]} 40... Nd4 {[%clk 0:00:04.9]} 41. Rc7+ {[%clk 0:00:11.3]} 41... Kd6
{[%clk 0:00:05.7]} 42. Rxb7 {[%clk 0:00:11.3]} 42... Rc8 {[%clk 0:00:06.5]} 43.
Rxd4+ {[%clk 0:00:04.8]} 43... exd4+ {[%clk 0:00:07.4]} 44. Kxd4 {[%clk
0:00:05.7]} 44... e5+ {[%clk 0:00:07.1]} 45. Kd3 {[%clk 0:00:06.2]} 45... Kc5
{[%clk 0:00:07.2]} 46. Rg7 {[%clk 0:00:05.3]} 46... Rd8+ {[%clk 0:00:07.6]} 47.
Ke3 {[%clk 0:00:05.3]} 47... Kxb5 {[%clk 0:00:07.9]} 48. Rxg6 {[%clk 0:00:06]}
48... Ka4 {[%clk 0:00:06.8]} 49. Re6 {[%clk 0:00:05.4]} 49... Kxa3 {[%clk
0:00:06.8]} 50. Rxe5 {[%clk 0:00:05.9]} 50... a4 {[%clk 0:00:06.3]} 51. Rxh5
{[%clk 0:00:05.7]} 51... Ra8 {[%clk 0:00:07]} 52. Rb5 {[%clk 0:00:05.1]} 52...
Ka2 {[%clk 0:00:06.9]} 53. g4 {[%clk 0:00:05.1]} 53... a3 {[%clk 0:00:07.6]} 54.
h5 {[%clk 0:00:05.5]} 54... Ka1 {[%clk 0:00:08.5]} 55. Kf4 {[%clk 0:00:05.3]}
55... a2 {[%clk 0:00:09.4]} 56. g5 {[%clk 0:00:05.5]} 56... Rf8+ {[%clk
0:00:08.9]} 57. Ke3 {[%clk 0:00:04]} 57... Rf3+ {[%clk 0:00:09.1]} 58. Kd4
{[%clk 0:00:03.7]} 58... Rh3 {[%clk 0:00:02.7]} 59. Ra5 {[%clk 0:00:01.8]} 59...
Rxh5 {[%clk 0:00:03]} 60. e5 {[%clk 0:00:01.5]} 60... Rxg5 {[%clk 0:00:03]} 61.
Kd5 {[%clk 0:00:02.2]} 61... Rxe5+ {[%clk 0:00:02.4]} 62. Kxe5 {[%clk
0:00:02.2]} 62... Kb2 {[%clk 0:00:03.3]} 63. Rxa2+ {[%clk 0:00:02.7]} 63... Kxa2
{[%clk 0:00:03.9]} 1/2-1/2